fUSD/lending_fUSD_20260621
["ID","MTS","AMOUNT","RATE_DAILY","PERIOD"]
[425908554,1782033095000,-500.0,0.00029863,2]
[425908548,1782033095000,-500.0,0.00029863,2]
[425908552,1782033095000,-1050.19,0.00029863,2]
[425908545,1782033095000,-500.0,0.00029863,2]
[425908550,1782033095000,-500.0,0.00029863,2]
[425908555,1782033095000,-500.0,0.00029863,2]
[425908557,1782033095000,-1000.0,0.00029863,2]
[425908558,1782033095000,-853.34,0.00029863,2]
[425908560,1782033095000,-500.0,0.00029863,2]
[425908561,1782033095000,-1758.48,0.00029863,2]
[425908559,1782033095000,-566.65,0.00029863,2]
[425908562,1782033095000,-531.84,0.00029863,2]
[425908563,1782033095000,-3977.44,0.00029863,2]
[425908553,1782033095000,-500.0,0.00029863,2]
[425908564,1782033095000,-500.0,0.00029863,2]
[425908566,1782033095000,-500.0,0.00029863,2]
[425908568,1782033095000,-500.0,0.00029863,2]
[425908567,1782033095000,-390.18658201,0.00029863,2]
[425908570,1782033095000,-500.0,0.00029863,2]
[425908571,1782033095000,-500.0,0.00029863,2]
[425908569,1782033095000,-375.53689497,0.00029863,2]
[425908574,1782033095000,-500.0,0.00029863,2]
[425908573,1782033095000,-500.0,0.00029863,2]
[425908576,1782033095000,-500.0,0.00029863,2]
[425908577,1782033095000,-539.64,0.00029863,2]
[425908575,1782033095000,-2819.93,0.00029863,2]
[425908572,1782033095000,-500.0,0.00029863,2]
[425908510,1782033095000,-203.40784959,0.00029863,2]
[425908565,1782033095000,-650.62,0.00029863,2]
[425908547,1782033095000,-500.0,0.00029863,2]
[425908556,1782033095000,-1121.32,0.00029863,2]
[425908551,1782033095000,-3456.59,0.00029863,2]
[425908549,1782033095000,-500.0,0.00029863,2]
[425908519,1782033095000,-500.0,0.00029863,2]
[425908528,1782033095000,-586.71,0.00029863,2]
[425908530,1782033095000,-595.47,0.00029863,2]
[425908529,1782033095000,-1068.12,0.00029863,2]
[425908518,1782033095000,-567.94,0.00029863,2]
[425908521,1782033095000,-636.34913728,0.00029863,2]
[425908523,1782033095000,-500.0,0.00029863,2]
[425908527,1782033095000,-717.52,0.00029863,2]
[425908526,1782033095000,-500.0,0.00029863,2]
[425908524,1782033095000,-969.71,0.00029863,2]
[425908520,1782033095000,-1666.17,0.00029863,2]
[425908522,1782033095000,-516.52,0.00029863,2]
[425908525,1782033095000,-500.0,0.00029863,2]
[425908542,1782033095000,-500.0,0.00029863,2]
[425908514,1782033095000,-1301.74,0.00029863,2]
[425908544,1782033095000,-503.69,0.00029863,2]
[425908546,1782033095000,-911.52,0.00029863,2]
[425908543,1782033095000,-772.6,0.00029863,2]
[425908536,1782033095000,-500.0,0.00029863,2]
[425908540,1782033095000,-836.7,0.00029863,2]
[425908541,1782033095000,-1073.5,0.00029863,2]
[425908537,1782033095000,-500.0,0.00029863,2]
[425908539,1782033095000,-623.8851682,0.00029863,2]
[425908538,1782033095000,-500.0,0.00029863,2]
[425908535,1782033095000,-500.0,0.00029863,2]
[425908532,1782033095000,-1493.19,0.00029863,2]
[425908534,1782033095000,-964.45,0.00029863,2]
[425908533,1782033095000,-1012.15,0.00029863,2]
[425908531,1782033095000,-500.0,0.00029863,2]
[425908630,1782033096000,-14690.66270211,0.000299,2]
[425908629,1782033096000,-14690.66270211,0.000299,2]
[425908619,1782033096000,-331.1,0.000299,2]
[425908615,1782033096000,-155.0,0.00029871,30]
[425908617,1782033096000,-160.0,0.00029872,30]
[425908610,1782033096000,-2292.48,0.00029863,2]
[425908606,1782033096000,-500.0,0.00029863,2]
[425908616,1782033096000,-157.0,0.00029871,30]
[425908612,1782033096000,-158.0,0.00029871,30]
[425908609,1782033096000,-1181.09,0.00029863,2]
[425908611,1782033096000,-506.67,0.00029863,2]
[425908621,1782033096000,-14690.66270211,0.000299,2]
[425908614,1782033096000,-162.80683182,0.00029871,30]
[425908620,1782033096000,-5165.999999,0.000299,7]
[425908626,1782033096000,-14690.66270211,0.000299,2]
[425908623,1782033096000,-14690.66270211,0.000299,2]
[425908622,1782033096000,-14690.66270211,0.000299,2]
[425908628,1782033096000,-14690.66270211,0.000299,2]
[425908624,1782033096000,-14690.66270211,0.000299,2]
[425908618,1782033096000,-521.68,0.000299,7]
[425908625,1782033096000,-14690.66270211,0.000299,2]
[425908631,1782033096000,-5096.96724054,0.00029937,2]
[425908632,1782033096000,-2331.0,0.00029964,3]
[425908636,1782033096000,-2500.0,0.0003,2]
[425908633,1782033096000,-518.16206934,0.00029973,2]
[425908643,1782033096000,-1000.0,0.0003,2]
[425908639,1782033096000,-2500.0,0.0003,2]
[425908638,1782033096000,-2500.0,0.0003,2]
[425908627,1782033096000,-14690.66270211,0.000299,2]
[425908607,1782033096000,-2177.43,0.00029863,2]
[425908579,1782033096000,-502.43823938,0.00029863,2]
[425908613,1782033096000,-160.0,0.00029871,30]
[425908578,1782033096000,-500.0,0.00029863,2]
[425908585,1782033096000,-500.0,0.00029863,2]
[425908580,1782033096000,-500.0,0.00029863,2]
[425908583,1782033096000,-651.67,0.00029863,2]
[425908592,1782033096000,-550.42,0.00029863,2]
[425908589,1782033096000,-500.0,0.00029863,2]
[425908584,1782033096000,-514.9475158,0.00029863,2]
[425908582,1782033096000,-500.0,0.00029863,2]
[425908581,1782033096000,-500.0,0.00029863,2]
[425908591,1782033096000,-904.85,0.00029863,2]
[425908587,1782033096000,-500.0,0.00029863,2]
[425908586,1782033096000,-629.92,0.00029863,2]
[425908588,1782033096000,-564.00088001,0.00029863,2]
[425908608,1782033096000,-827.33,0.00029863,2]
[425908590,1782033096000,-712.88,0.00029863,2]
[425908595,1782033096000,-500.0,0.00029863,2]
[425908635,1782033096000,-2500.0,0.0003,2]
[425908593,1782033096000,-500.0,0.00029863,2]
[425908596,1782033096000,-1002.37,0.00029863,2]
[425908604,1782033096000,-500.0,0.00029863,2]
[425908597,1782033096000,-500.0,0.00029863,2]
[425908599,1782033096000,-1479.66,0.00029863,2]
[425908603,1782033096000,-791.72,0.00029863,2]
[425908598,1782033096000,-500.0,0.00029863,2]
[425908601,1782033096000,-500.0,0.00029863,2]
[425908602,1782033096000,-500.0,0.00029863,2]
[425908600,1782033096000,-2754.08,0.00029863,2]
[425908605,1782033096000,-500.0,0.00029863,2]
[425908594,1782033096000,-500.0,0.00029863,2]
[425908637,1782033096000,-2500.0,0.0003,2]
[425908686,1782033096000,-1088.96950673,0.00030008,30]
[425908640,1782033096000,-1116.38150293,0.0003,2]
[425908676,1782033096000,-1528.15969,0.0003,2]
[425908672,1782033096000,-11601.23800415,0.0003,2]
[425908673,1782033096000,-216.32317309,0.0003,30]
[425908674,1782033096000,-216.32317309,0.0003,7]
[425908679,1782033096000,-1109.69851468,0.00030001,2]
[425908678,1782033096000,-25000.0,0.0003,2]
[425908677,1782033096000,-2500.0,0.0003,2]
[425908682,1782033096000,-749.0,0.00030001,2]
[425908684,1782033096000,-1567.34072151,0.00030008,30]
[425908687,1782033096000,-502.52149773,0.0003007,2]
[425908685,1782033096000,-150.0,0.00030008,30]
[425908689,1782033096000,-205.11,0.00030074,2]
[425908693,1782033096000,-1500.0,0.00030112,10]
[425908671,1782033096000,-24999.98,0.0003,2]
[425908692,1782033096000,-2885.63505339,0.000301,2]
[425908688,1782033096000,-299.54,0.00030074,2]
[425908691,1782033096000,-280.15,0.00030074,2]
[425908694,1782033096000,-22500.0,0.00030125,2]
[425908696,1782033096000,-159.68637363,0.00030135,2]
[425908697,1782033096000,-500.0,0.00030136,2]
[425908698,1782033096000,-500.0,0.00030136,2]
[425908695,1782033096000,-25502.72578049,0.0003013,7]
[425908700,1782033096000,-500.0,0.00030136,2]
[425908699,1782033096000,-534.17,0.00030136,2]
[425908703,1782033096000,-634.94,0.00030136,2]
[425908702,1782033096000,-1203.65,0.00030136,2]
[425908701,1782033096000,-500.0,0.00030136,2]
[425908641,1782033096000,-15797.71694103,0.0003,30]
[425908690,1782033096000,-224.66,0.00030074,2]
[425908681,1782033096000,-749.0,0.00030001,2]
[425908683,1782033096000,-150.0,0.00030008,30]
[425908680,1782033096000,-749.0,0.00030001,2]
[425908642,1782033096000,-202.32,0.0003,11]
[425908675,1782033096000,-200.0,0.0003,2]
[425908634,1782033096000,-2500.0,0.0003,2]
[425908645,1782033096000,-1482.7217729,0.0003,14]
[425908656,1782033096000,-746.72,0.0003,2]
[425908644,1782033096000,-4864.49141607,0.0003,2]
[425908655,1782033096000,-400.81602693,0.0003,2]
[425908654,1782033096000,-253.67494038,0.0003,4]
[425908651,1782033096000,-2500.0,0.0003,2]
[425908648,1782033096000,-152.92,0.0003,7]
[425908646,1782033096000,-8097.0,0.0003,20]
[425908647,1782033096000,-500.0,0.0003,2]
[425908653,1782033096000,-2500.0,0.0003,2]
[425908649,1782033096000,-254.87,0.0003,5]
[425908652,1782033096000,-2500.0,0.0003,2]
[425908650,1782033096000,-2500.0,0.0003,2]
[425908670,1782033096000,-3002.45782609,0.0003,2]
[425908669,1782033096000,-25000.0,0.0003,2]
[425908659,1782033096000,-2500.0,0.0003,2]
[425908668,1782033096000,-22500.0,0.0003,2]
[425908663,1782033096000,-24999.98,0.0003,2]
[425908662,1782033096000,-2500.0,0.0003,2]
[425908665,1782033096000,-3256.26,0.0003,2]
[425908667,1782033096000,-186.2,0.0003,2]
[425908661,1782033096000,-25000.0,0.0003,2]
[425908658,1782033096000,-7500.0,0.0003,2]
[425908666,1782033096000,-410.27,0.0003,2]
[425908660,1782033096000,-25000.0,0.0003,2]
[425908657,1782033096000,-6423.34368097,0.0003,7]
[425908664,1782033096000,-2500.0,0.0003,2]
[425908746,1782033097000,-174.9,0.00030136,2]
[425908745,1782033097000,-500.0,0.00030136,2]
[425908757,1782033097000,-577.92,0.00030136,2]
[425908756,1782033097000,-840.08,0.00030136,2]
[425908758,1782033097000,-582.10228966,0.00030136,2]
[425908737,1782033097000,-1000.0,0.00030136,7]
[425908736,1782033097000,-1000.0,0.00030136,7]
[425908740,1782033097000,-1000.0,0.00030136,7]
[425908739,1782033097000,-1000.0,0.00030136,7]
[425908738,1782033097000,-1000.0,0.00030136,7]
[425908743,1782033097000,-500.0,0.00030136,2]
[425908754,1782033097000,-975.96,0.00030136,2]
[425908742,1782033097000,-1000.0,0.00030136,7]
[425908748,1782033097000,-500.0,0.00030136,2]
[425908766,1782033097000,-924.09,0.00030136,2]
[425908749,1782033097000,-500.0,0.00030136,2]
[425908753,1782033097000,-500.0,0.00030136,2]
[425908750,1782033097000,-528.51,0.00030136,2]
[425908755,1782033097000,-500.0,0.00030136,2]
[425908751,1782033097000,-500.0,0.00030136,2]
[425908752,1782033097000,-500.0,0.00030136,2]
[425908759,1782033097000,-500.0,0.00030136,2]
[425908761,1782033097000,-1347.78,0.00030136,2]
[425908760,1782033097000,-500.0,0.00030136,2]
[425908762,1782033097000,-500.0,0.00030136,2]
[425908770,1782033097000,-500.0,0.00030136,2]
[425908763,1782033097000,-1076.52,0.00030136,2]
[425908735,1782033097000,-1000.0,0.00030136,7]
[425908747,1782033097000,-500.0,0.00030136,2]
[425908741,1782033097000,-1000.0,0.00030136,7]
[425908706,1782033097000,-500.0,0.00030136,2]
[425908734,1782033097000,-1000.0,0.00030136,7]
[425908771,1782033097000,-500.0,0.00030136,2]
[425908707,1782033097000,-500.0,0.00030136,2]
[425908705,1782033097000,-793.21,0.00030136,2]
[425908704,1782033097000,-500.0,0.00030136,2]
[425908710,1782033097000,-780.63,0.00030136,2]
[425908711,1782033097000,-578.39,0.00030136,2]
[425908709,1782033097000,-500.0,0.00030136,2]
[425908716,1782033097000,-500.0,0.00030136,2]
[425908712,1782033097000,-500.0,0.00030136,2]
[425908717,1782033097000,-500.0,0.00030136,2]
[425908719,1782033097000,-762.48,0.00030136,2]
[425908713,1782033097000,-500.0,0.00030136,2]
[425908715,1782033097000,-500.0,0.00030136,2]
[425908718,1782033097000,-500.0,0.00030136,2]
[425908714,1782033097000,-500.0,0.00030136,2]
[425908721,1782033097000,-500.0,0.00030136,2]
[425908731,1782033097000,-645.65,0.00030136,2]
[425908732,1782033097000,-1000.0,0.00030136,7]
[425908730,1782033097000,-819.65,0.00030136,2]
[425908729,1782033097000,-500.0,0.00030136,2]
[425908720,1782033097000,-500.0,0.00030136,2]
[425908725,1782033097000,-1264.4,0.00030136,2]
[425908722,1782033097000,-580.07,0.00030136,2]
[425908727,1782033097000,-500.0,0.00030136,2]
[425908723,1782033097000,-500.0,0.00030136,2]
[425908726,1782033097000,-635.9,0.00030136,2]
[425908724,1782033097000,-500.0,0.00030136,2]
[425908728,1782033097000,-500.0,0.00030136,2]
[425908733,1782033097000,-1000.0,0.00030136,7]
[425908744,1782033097000,-500.0,0.00030136,2]
[425908769,1782033097000,-1290.56,0.00030136,2]
[425908708,1782033097000,-500.0,0.00030136,2]
[425908767,1782033097000,-500.0,0.00030136,2]
[425908799,1782033097000,-500.0,0.00030136,2]
[425908801,1782033097000,-500.0,0.00030136,2]
[425908804,1782033097000,-500.0,0.00030136,2]
[425908805,1782033097000,-658.23,0.00030136,2]
[425908809,1782033097000,-612.83,0.00030136,2]
[425908808,1782033097000,-594.78753075,0.00030136,2]
[425908806,1782033097000,-500.0,0.00030136,2]
[425908807,1782033097000,-516.55,0.00030136,2]
[425908812,1782033097000,-562.16,0.00030136,2]
[425908813,1782033097000,-509.25,0.00030136,2]
[425908815,1782033097000,-500.0,0.00030136,2]
[425908814,1782033097000,-921.72,0.00030136,2]
[425908816,1782033097000,-500.0,0.00030136,2]
[425908823,1782033097000,-500.0,0.00030136,2]
[425908817,1782033097000,-500.0,0.00030136,2]
[425908820,1782033097000,-500.0,0.00030136,2]
[425908819,1782033097000,-500.0,0.00030136,2]
[425908821,1782033097000,-500.0,0.00030136,2]
[425908822,1782033097000,-582.99,0.00030136,2]
[425908824,1782033097000,-1066.62,0.00030136,2]
[425908826,1782033097000,-603.17,0.00030136,2]
[425908825,1782033097000,-500.0,0.00030136,2]
[425908827,1782033097000,-500.0,0.00030136,2]
[425908828,1782033097000,-500.0,0.00030136,2]
[425908829,1782033097000,-629.68,0.00030136,2]
[425908830,1782033097000,-500.0,0.00030136,2]
[425908831,1782033097000,-500.0,0.00030136,2]
[425908832,1782033097000,-784.62,0.00030136,2]
[425908765,1782033097000,-500.0,0.00030136,2]
[425908803,1782033097000,-595.36,0.00030136,2]
[425908802,1782033097000,-500.0,0.00030136,2]
[425908818,1782033097000,-500.0,0.00030136,2]
[425908810,1782033097000,-550.74,0.00030136,2]
[425908768,1782033097000,-500.0,0.00030136,2]
[425908811,1782033097000,-533.88,0.00030136,2]
[425908764,1782033097000,-1703.68,0.00030136,2]
[425908783,1782033097000,-500.0,0.00030136,2]
[425908772,1782033097000,-1165.13,0.00030136,2]
[425908774,1782033097000,-500.0,0.00030136,2]
[425908775,1782033097000,-898.43,0.00030136,2]
[425908784,1782033097000,-761.39,0.00030136,2]
[425908785,1782033097000,-504.3,0.00030136,2]
[425908773,1782033097000,-500.0,0.00030136,2]
[425908781,1782033097000,-547.24,0.00030136,2]
[425908780,1782033097000,-769.83,0.00030136,2]
[425908782,1782033097000,-500.0,0.00030136,2]
[425908778,1782033097000,-500.0,0.00030136,2]
[425908777,1782033097000,-500.0,0.00030136,2]
[425908776,1782033097000,-541.49715247,0.00030136,2]
[425908786,1782033097000,-500.0,0.00030136,2]
[425908800,1782033097000,-500.0,0.00030136,2]
[425908779,1782033097000,-716.64,0.00030136,2]
[425908796,1782033097000,-592.61,0.00030136,2]
[425908794,1782033097000,-500.0,0.00030136,2]
[425908793,1782033097000,-500.0,0.00030136,2]
[425908792,1782033097000,-546.86,0.00030136,2]
[425908791,1782033097000,-500.0,0.00030136,2]
[425908795,1782033097000,-591.97,0.00030136,2]
[425908797,1782033097000,-500.0,0.00030136,2]
[425908788,1782033097000,-500.0,0.00030136,2]
[425908798,1782033097000,-530.82,0.00030136,2]
[425908790,1782033097000,-353.56877456,0.00030136,2]
[425908789,1782033097000,-500.0,0.00030136,2]
[425908787,1782033097000,-693.99,0.00030136,2]
[425908879,1782033098000,-718.34,0.00030136,2]
[425908877,1782033098000,-500.0,0.00030136,2]
[425908873,1782033098000,-803.37,0.00030136,2]
[425908871,1782033098000,-1229.86,0.00030136,2]
[425908866,1782033098000,-500.0,0.00030136,2]
[425908872,1782033098000,-500.0,0.00030136,2]
[425908875,1782033098000,-500.0,0.00030136,2]
[425908868,1782033098000,-500.0,0.00030136,2]
[425908870,1782033098000,-530.25766936,0.00030136,2]
[425908874,1782033098000,-40687.380737,0.00030136,2]
[425908869,1782033098000,-500.0,0.00030136,2]
[425908890,1782033098000,-500.0,0.00030136,2]
[425908867,1782033098000,-500.0,0.00030136,2]
[425908889,1782033098000,-662.0,0.00030136,2]
[425908896,1782033098000,-500.0,0.00030136,2]
[425908881,1782033098000,-500.0,0.00030136,2]
[425908883,1782033098000,-507.61,0.00030136,2]
[425908884,1782033098000,-512.8,0.00030136,2]
[425908882,1782033098000,-500.0,0.00030136,2]
[425908886,1782033098000,-500.0,0.00030136,2]
[425908880,1782033098000,-500.0,0.00030136,2]
[425908887,1782033098000,-253.57877694,0.00030136,2]
[425908888,1782033098000,-676.98,0.00030136,2]
[425908885,1782033098000,-500.0,0.00030136,2]
[425908901,1782033098000,-500.0,0.00030136,2]
[425908891,1782033098000,-556.35,0.00030136,2]
[425908903,1782033098000,-1113.05,0.00030136,2]
[425908892,1782033098000,-500.0,0.00030136,2]
[425908876,1782033098000,-500.0,0.00030136,2]
[425908878,1782033098000,-170.260492,0.00030136,2]
[425908865,1782033098000,-500.0,0.00030136,2]
[425908836,1782033098000,-500.0,0.00030136,2]
[425908862,1782033098000,-500.0,0.00030136,2]
[425908894,1782033098000,-500.0,0.00030136,2]
[425908837,1782033098000,-568.75,0.00030136,2]
[425908833,1782033098000,-664.29,0.00030136,2]
[425908834,1782033098000,-500.0,0.00030136,2]
[425908835,1782033098000,-737.18,0.00030136,2]
[425908842,1782033098000,-500.0,0.00030136,2]
[425908838,1782033098000,-500.0,0.00030136,2]
[425908840,1782033098000,-500.0,0.00030136,2]
[425908841,1782033098000,-1737.27,0.00030136,2]
[425908850,1782033098000,-500.0,0.00030136,2]
[425908844,1782033098000,-875.57,0.00030136,2]
[425908839,1782033098000,-1018.86,0.00030136,2]
[425908849,1782033098000,-500.0,0.00030136,2]
[425908848,1782033098000,-504.67608429,0.00030136,2]
[425908860,1782033098000,-1516.79,0.00030136,2]
[425908845,1782033098000,-779.95,0.00030136,2]
[425908846,1782033098000,-921.6,0.00030136,2]
[425908851,1782033098000,-713.9,0.00030136,2]
[425908847,1782033098000,-661.95,0.00030136,2]
[425908853,1782033098000,-500.0,0.00030136,2]
[425908863,1782033098000,-859.42,0.00030136,2]
[425908864,1782033098000,-500.0,0.00030136,2]
[425908852,1782033098000,-161.00287,0.00030136,2]
[425908859,1782033098000,-500.0,0.00030136,2]
[425908854,1782033098000,-746.04,0.00030136,2]
[425908855,1782033098000,-318.87297605,0.00030136,2]
[425908856,1782033098000,-530.73,0.00030136,2]
[425908858,1782033098000,-667.5,0.00030136,2]
[425908861,1782033098000,-500.0,0.00030136,2]
[425908857,1782033098000,-500.0,0.00030136,2]
[425908843,1782033098000,-500.0,0.00030136,2]
[425908897,1782033098000,-782.46,0.00030136,2]
[425908906,1782033098000,-500.0,0.00030136,2]
[425908899,1782033098000,-500.0,0.00030136,2]
[425908942,1782033098000,-500.0,0.00030136,2]
[425908931,1782033098000,-966.1,0.00030136,2]
[425908943,1782033098000,-500.0,0.00030136,2]
[425908934,1782033098000,-500.0,0.00030136,2]
[425908933,1782033098000,-500.0,0.00030136,2]
[425908938,1782033098000,-500.0,0.00030136,2]
[425908941,1782033098000,-500.0,0.00030136,2]
[425908939,1782033098000,-513.5,0.00030136,2]
[425908940,1782033098000,-570.70262223,0.00030136,2]
[425908944,1782033098000,-500.0,0.00030136,2]
[425908947,1782033098000,-500.0,0.00030136,2]
[425908946,1782033098000,-1066.54,0.00030136,2]
[425908955,1782033098000,-1496.3,0.00030136,2]
[425908953,1782033098000,-4073.97,0.00030136,2]
[425908950,1782033098000,-966.14,0.00030136,2]
[425908956,1782033098000,-500.0,0.00030136,2]
[425908945,1782033098000,-500.0,0.00030136,2]
[425908952,1782033098000,-512.14,0.00030136,2]
[425908949,1782033098000,-500.0,0.00030136,2]
[425908948,1782033098000,-743.54,0.00030136,2]
[425908951,1782033098000,-1401.64,0.00030136,2]
[425908954,1782033098000,-2735.23,0.00030136,2]
[425908898,1782033098000,-539.05,0.00030136,2]
[425908958,1782033098000,-500.0,0.00030136,2]
[425908961,1782033098000,-920.55,0.00030136,2]
[425908959,1782033098000,-744.26,0.00030136,2]
[425908960,1782033098000,-500.0,0.00030136,2]
[425908962,1782033098000,-500.0,0.00030136,2]
[425908963,1782033098000,-500.0,0.00030136,2]
[425908936,1782033098000,-1096.97,0.00030136,2]
[425908935,1782033098000,-4516.02,0.00030136,2]
[425908957,1782033098000,-500.0,0.00030136,2]
[425908932,1782033098000,-292.07092171,0.00030136,2]
[425908937,1782033098000,-1051.17,0.00030136,2]
[425908893,1782033098000,-1114.23,0.00030136,2]
[425908904,1782033098000,-519.31,0.00030136,2]
[425908900,1782033098000,-500.0,0.00030136,2]
[425908895,1782033098000,-1574.14,0.00030136,2]
[425908905,1782033098000,-500.0,0.00030136,2]
[425908910,1782033098000,-572.27,0.00030136,2]
[425908918,1782033098000,-214.04173025,0.00030136,2]
[425908907,1782033098000,-500.0,0.00030136,2]
[425908908,1782033098000,-500.0,0.00030136,2]
[425908917,1782033098000,-500.0,0.00030136,2]
[425908911,1782033098000,-500.0,0.00030136,2]
[425908912,1782033098000,-1053.37,0.00030136,2]
[425908916,1782033098000,-500.0,0.00030136,2]
[425908909,1782033098000,-500.0,0.00030136,2]
[425908902,1782033098000,-500.0,0.00030136,2]
[425908915,1782033098000,-500.0,0.00030136,2]
[425908930,1782033098000,-714.11,0.00030136,2]
[425908914,1782033098000,-500.0,0.00030136,2]
[425908929,1782033098000,-500.0,0.00030136,2]
[425908928,1782033098000,-1043.69,0.00030136,2]
[425908927,1782033098000,-704.57,0.00030136,2]
[425908922,1782033098000,-565.61,0.00030136,2]
[425908924,1782033098000,-1419.48,0.00030136,2]
[425908920,1782033098000,-500.0,0.00030136,2]
[425908926,1782033098000,-762.22,0.00030136,2]
[425908913,1782033098000,-500.0,0.00030136,2]
[425908925,1782033098000,-500.0,0.00030136,2]
[425908923,1782033098000,-500.0,0.00030136,2]
[425908921,1782033098000,-500.0,0.00030136,2]
[425908919,1782033098000,-622.33,0.00030136,2]
[425909002,1782033099000,-836.7,0.00030136,2]
[425908997,1782033099000,-964.45,0.00030136,2]
[425908996,1782033099000,-1012.15,0.00030136,2]
[425908988,1782033099000,-462.5,0.00030136,2]
[425908994,1782033099000,-500.0,0.00030136,2]
[425908986,1782033099000,-500.0,0.00030136,2]
[425908989,1782033099000,-500.0,0.00030136,2]
[425909005,1782033099000,-772.6,0.00030136,2]
[425908987,1782033099000,-969.71,0.00030136,2]
[425908995,1782033099000,-1493.19,0.00030136,2]
[425909004,1782033099000,-500.0,0.00030136,2]
[425909000,1782033099000,-500.0,0.00030136,2]
[425908998,1782033099000,-602.26273433,0.00030136,2]
[425909001,1782033099000,-500.0,0.00030136,2]
[425909003,1782033099000,-1073.5,0.00030136,2]
[425909006,1782033099000,-503.69,0.00030136,2]
[425909008,1782033099000,-911.52,0.00030136,2]
[425909018,1782033099000,-1121.32,0.00030136,2]
[425909009,1782033099000,-500.0,0.00030136,2]
[425909010,1782033099000,-500.0,0.00030136,2]
[425909007,1782033099000,-500.0,0.00030136,2]
[425908992,1782033099000,-1068.12,0.00030136,2]
[425908999,1782033099000,-500.0,0.00030136,2]
[425908983,1782033099000,-500.0,0.00030136,2]
[425908975,1782033099000,-831.38,0.00030136,2]
[425908982,1782033099000,-567.94,0.00030136,2]
[425909011,1782033099000,-500.0,0.00030136,2]
[425908968,1782033099000,-500.0,0.00030136,2]
[425908964,1782033099000,-500.0,0.00030136,2]
[425908967,1782033099000,-500.0,0.00030136,2]
[425908965,1782033099000,-4215.0,0.00030136,2]
[425908969,1782033099000,-500.0,0.00030136,2]
[425908966,1782033099000,-2160.34,0.00030136,2]
[425908973,1782033099000,-596.87,0.00030136,2]
[425908970,1782033099000,-606.32,0.00030136,2]
[425908976,1782033099000,-509.56,0.00030136,2]
[425908990,1782033099000,-717.52,0.00030136,2]
[425908978,1782033099000,-1301.74,0.00030136,2]
[425908974,1782033099000,-544.00232588,0.00030136,2]
[425908979,1782033099000,-168.64796585,0.00030136,2]
[425908977,1782033099000,-537.11,0.00030136,2]
[425908971,1782033099000,-500.0,0.00030136,2]
[425908981,1782033099000,-662.83,0.00030136,2]
[425908980,1782033099000,-1548.3,0.00030136,2]
[425908984,1782033099000,-1666.17,0.00030136,2]
[425908985,1782033099000,-516.52,0.00030136,2]
[425908991,1782033099000,-586.71,0.00030136,2]
[425908993,1782033099000,-595.47,0.00030136,2]
[425908972,1782033099000,-1115.01,0.00030136,2]
[425909013,1782033099000,-3456.59,0.00030136,2]
[425909021,1782033099000,-566.65,0.00030136,2]
[425909014,1782033099000,-1050.19,0.00030136,2]